bitfinex/quotes_ETHUSD_20250623
["timestamp","ask_amount","ask_price","bid_price","bid_amount"]
[1750688808950,1.6024,2294.5,2293.7,4.35961521]
[1750688809259,1.6024,2294.5,2293.9,4.35935146]
[1750688809563,1.6024,2294.5,2293.8,4.35947481]
[1750688809564,1.6024,2294.5,2293.8,4.35946963]
[1750688809940,1.6024,2294.5,2293.8,4.35947795]
[1750688810467,1.6024,2294.5,2293.9,4.35937827]
[1750688810683,1.6024,2294.5,2293.7,0.55]
[1750688810833,2.492,2295.1,2294.1,0.55]
[1750688811028,2.492,2295.1,2294.5,4.35816958]
[1750688811247,2.492,2295.1,2294.4,4.35832812]
[1750688811451,2.492,2295.1,2294.1,0.55]
[1750688811779,11.6024,2295.0,2294.2,4.35881569]
[1750688811927,11.6024,2295.0,2294.0,5.92652909]
[1750688812132,13.01184,2295.0,2294.0,5.92652909]
[1750688812327,13.01184,2295.0,2294.1,4.35897576]
[1750688812734,13.01184,2295.0,2294.0,14.10146546]
[1750688813032,11.40944,2295.0,2294.0,8.175]
[1750688813245,11.40944,2295.0,2294.0,8.174]
[1750688813246,1.6373,2294.9,2294.0,8.174]
[1750688813735,1.6373,2294.9,2294.0,12.53311633]
[1750688814041,1.6373,2294.9,2294.1,4.35900457]
[1750688814554,1.6373,2294.9,2293.9,12.53230753]
[1750688815064,1.6373,2294.9,2293.9,4.35930753]
[1750688815266,11.6373,2294.9,2293.9,10.0]
[1750688815485,1.6155,2294.7,2293.8,14.35956817]
[1750688815684,1.5971,2294.6,2293.7,8.17]
[1750688815994,1.5971,2294.3,2293.4,0.42657006]
[1750688816264,1.5971,2294.2,2293.4,4.36031681]
[1750688816485,1.5971,2294.2,2293.3,4.36042114]
[1750688816633,1.5971,2294.2,2293.2,4.36061592]
[1750688816835,1.5971,2294.2,2293.2,12.52861592]
[1750688817151,1.5971,2294.2,2293.3,10.0]
[1750688817356,1.6607,2294.0,2293.3,10.0]
[1750688817874,1.6607,2294.0,2293.3,14.78953083]
[1750688818173,1.6607,2294.0,2293.3,4.78952885]
[1750688818672,1.6607,2294.0,2293.4,4.36022456]
[1750688818975,1.6607,2294.0,2293.3,4.36044008]
[1750688819176,1.6607,2294.0,2293.9,4.35938794]
[1750688819333,1.6065,2294.7,2293.8,4.35946524]
[1750688819538,1.6065,2294.7,2294.1,4.35892156]
[1750688820149,1.6065,2294.7,2293.9,4.35927473]
[1750688820353,1.6065,2294.7,2293.6,8.163]
[1750688820554,1.6065,2294.7,2293.8,4.79559003]
[1750688820750,1.6065,2294.7,2293.8,12.95859003]
[1750688820951,1.6065,2294.7,2293.8,8.59903102]
[1750688821178,1.6065,2294.7,2293.8,12.95847773]
[1750688821378,2.01635,2294.7,2293.9,4.35936054]
[1750688821678,1.523,2294.6,2293.8,12.5224816]
[1750688821973,1.523,2294.6,2293.8,8.163]
[1750688822178,10.0,2294.6,2293.6,8.159]
[1750688822361,1.5122,2294.5,2293.6,8.159]
[1750688822679,1.5122,2294.3,2293.6,0.4311872]
[1750688822985,1.6663,2294.1,2293.3,12.51842899]
[1750688823164,1.6663,2294.1,2293.3,8.158]
[1750688823475,11.6663,2294.7,2294.0,4.3590306]
[1750688823678,11.6663,2294.7,2293.9,4.35928125]
[1750688823843,11.6663,2294.7,2294.0,4.35917367]
[1750688824041,11.6663,2294.7,2293.9,4.35925447]
[1750688824377,11.6663,2294.7,2293.8,8.157]
[1750688824378,11.6663,2294.7,2294.1,4.35893151]
[1750688824560,1.6663,2294.7,2294.0,4.35908068]
[1750688824761,1.6663,2294.7,2294.2,4.35869782]
[1750688825070,1.6663,2294.7,2294.2,4.79458335]
[1750688825276,1.6663,2294.7,2294.2,0.43586978]
[1750688826484,1.6663,2294.7,2294.0,4.35912504]
[1750688826788,1.6663,2294.7,2293.7,4.35976806]
[1750688826992,1.6663,2294.7,2293.7,22.51264522]
[1750688827441,1.6663,2294.7,2293.7,14.35964522]
[1750688827782,1.6663,2294.7,2293.7,22.50964522]
[1750688827988,1.5105,2294.6,2293.9,4.35934507]
[1750688828294,1.5105,2294.6,2293.8,4.35955859]
[1750688828295,1.5105,2294.6,2293.8,4.35952424]
[1750688828451,1.5105,2294.6,2293.9,4.35924316]
[1750688828989,1.5105,2294.6,2293.8,12.50745005]
[1750688829141,1.5105,2294.6,2293.9,4.35938508]
[1750688829341,1.5105,2294.6,2293.8,12.50750116]
[1750688829542,1.91075,2294.6,2293.8,8.148]
[1750688829883,1.91075,2294.6,2293.8,12.50755381]
[1750688830098,1.91075,2294.6,2293.9,4.35928508]
[1750688830573,1.91075,2294.6,2293.8,12.50754419]
[1750688830789,1.91075,2294.6,2293.9,4.3593077]
[1750688830988,1.5105,2294.6,2293.9,4.3593077]
[1750688831195,1.5105,2294.6,2294.0,4.35911579]
[1750688831984,1.5105,2294.6,2293.9,0.55]
[1750688832166,1.5105,2294.6,2293.9,4.9093772]
[1750688832358,1.5105,2294.6,2294.2,4.35869994]
[1750688832758,1.5105,2294.6,2293.8,4.35945926]
[1750688832990,1.5105,2294.6,2293.9,8.141]
[1750688833292,1.5105,2294.6,2293.9,12.50036561]
[1750688833590,1.5105,2294.6,2293.9,12.50038]
[1750688833765,1.5105,2294.6,2293.9,12.50024229]
[1750688834093,10.86610094,2294.4,2293.6,0.44309735]
[1750688834316,1.5378,2293.7,2292.6,1.6106]
[1750688834519,10.86610094,2293.5,2292.8,0.43544099]
[1750688834659,1.5411,2293.4,2292.5,10.0]
[1750688835002,1.5411,2293.4,2292.5,14.36198485]
[1750688835205,1.5411,2293.4,2292.6,4.36181186]
[1750688835386,1.5411,2293.4,2292.6,8.137]
[1750688835691,1.5411,2293.4,2293.1,4.36077914]
[1750688836056,1.5269,2294.2,2293.2,10.55]
[1750688836259,11.5269,2294.2,2293.6,4.35993406]
[1750688836600,1.09452768,2294.1,2293.6,4.35993406]
[1750688836808,11.5269,2294.2,2293.5,4.36007118]
[1750688837458,1.5088,2294.1,2293.3,4.36041425]
[1750688837658,1.5088,2294.1,2293.2,10.0]
[1750688837896,1.5088,2294.1,2293.0,4.36101491]
[1750688838058,1.5088,2293.6,2292.5,2.05993489]
[1750688838260,10.0,2293.4,2292.5,0.42793489]
[1750688838495,1.506,2293.3,2292.4,10.0]
[1750688838691,1.506,2293.3,2291.9,4.36315013]
[1750688838692,10.86610094,2292.6,2291.2,0.1104696]
[1750688838995,10.86610094,2292.6,2291.6,4.36360207]
[1750688838996,1.506,2292.4,2291.6,4.36360207]
[1750688839184,1.506,2292.4,2291.2,0.1104696]
[1750688839392,1.506,2292.4,2292.0,4.36298989]
[1750688839587,1.506,2292.4,2291.9,4.79345756]
[1750688839781,1.506,2292.4,2291.8,4.3632853]
[1750688839982,1.506,2292.4,2291.9,4.36308686]
[1750688840596,1.506,2292.4,2291.7,10.0]
[1750688840799,1.506,2292.4,2291.8,4.36338249]
[1750688840962,1.506,2292.4,2291.7,18.128]
[1750688841168,1.506,2292.4,2291.7,22.49149]
[1750688841380,1.506,2292.4,2291.9,4.36312636]
[1750688841706,1.506,2292.4,2291.9,4.36319211]
[1750688841872,1.506,2292.4,2291.7,10.0]
[1750688842080,1.506,2292.4,2291.8,4.36329654]
[1750688842378,1.506,2292.4,2291.8,4.36327748]
[1750688842802,1.506,2292.4,2291.8,0.55]
[1750688843002,1.5376,2292.6,2292.1,4.36281139]
[1750688843301,1.5376,2292.6,2292.5,4.36205016]
[1750688843497,1.6565,2293.0,2292.6,4.36176014]
[1750688843702,1.6565,2293.0,2292.4,0.44088123]
[1750688843865,1.6565,2293.0,2292.8,4.36144328]
[1750688844061,1.6565,2293.0,2292.4,4.36222072]
[1750688844062,1.6565,2293.0,2292.6,8.124]
[1750688844279,1.6565,2293.0,2292.6,12.48585262]
[1750688844963,1.6565,2293.0,2292.5,4.36203671]
[1750688845300,1.6565,2293.0,2292.4,0.43021833]
[1750688845477,1.6565,2293.0,2292.4,10.55]
[1750688845798,1.6565,2293.0,2292.7,4.36156351]
[1750688846099,1.6565,2293.0,2292.8,4.36142087]
[1750688846303,1.6565,2293.0,2292.7,4.3615705]
[1750688846596,1.6565,2293.0,2292.4,14.8083666]
[1750688846901,1.6565,2293.0,2292.6,4.36177893]
[1750688847316,1.6565,2293.0,2292.5,12.48397917]
[1750688847499,1.6565,2293.0,2292.6,4.36173368]
[1750688847887,1.6565,2293.0,2292.7,4.36166964]
[1750688848214,1.6565,2293.0,2292.8,4.36138892]
[1750688848395,1.6565,2293.0,2292.5,12.48400688]
[1750688848570,1.6565,2293.0,2292.7,4.36157872]
[1750688848968,1.6565,2293.0,2292.5,12.48387147]
[1750688849169,1.6565,2293.0,2292.6,4.36185657]
[1750688849372,1.6565,2293.0,2292.7,4.36164305]
[1750688849802,1.6565,2293.0,2292.5,8.122]
[1750688850707,10.86610094,2292.9,2291.4,12.94]
[1750688851022,1.6241,2292.7,2291.5,9.7549]
[1750688851216,1.6241,2292.7,2291.7,4.36349132]
[1750688851515,1.6241,2292.7,2291.7,4.36348571]
[1750688851675,1.6241,2292.7,2291.6,4.36366978]
[1750688851873,1.16241,2292.6,2291.7,14.36356823]
[1750688852218,1.583,2292.5,2291.7,14.36356823]
[1750688852372,1.583,2292.5,2291.7,10.0]
[1750688852567,4.1242,2292.4,2291.1,4.36469955]
[1750688852774,1.6632,2292.3,2291.4,4.36408577]
[1750688852975,1.5723,2292.1,2291.4,10.0]
[1750688853180,1.5723,2292.1,2291.3,4.36432016]
[1750688853508,1.5723,2292.1,2291.2,8.2234696]
[1750688853711,1.5723,2292.1,2291.3,14.36433374]
[1750688853915,1.5723,2292.1,2291.3,4.36433374]
[1750688854223,2.85738209,2292.1,2291.4,4.36412388]
[1750688854432,1.5723,2292.1,2291.6,4.36372349]
[1750688854715,1.5723,2292.1,2291.5,4.36386074]
[1750688854914,1.5723,2292.1,2291.4,4.91414419]
[1750688855108,1.5723,2292.1,2291.4,0.55]
[1750688855304,1.5723,2292.1,2291.6,4.36366756]
[1750688855505,1.5723,2292.1,2291.2,4.92092259]
[1750688855711,1.5723,2292.1,2291.2,0.55645295]
[1750688855917,1.5723,2292.1,2291.2,14.9209696]
[1750688856115,1.5723,2292.1,2291.2,4.9208987]
[1750688856422,1.5723,2292.1,2291.3,4.36420355]
[1750688856634,1.5723,2292.1,2291.3,4.36433465]
[1750688856834,1.5723,2292.1,2291.2,0.55645295]
[1750688856995,1.5723,2292.1,2291.4,4.36396575]
[1750688857407,1.5723,2292.1,2291.3,4.3642292]
[1750688857623,1.5723,2292.1,2291.3,4.36416902]
[1750688857929,1.5723,2292.1,2291.4,4.36404289]
[1750688858105,1.5723,2292.1,2291.3,4.36429381]
[1750688858306,1.97563,2292.1,2291.3,4.36429381]
[1750688858528,1.97563,2292.1,2291.4,4.36410819]
[1750688858698,1.97563,2292.1,2291.5,4.3638416]
[1750688859031,1.97563,2292.1,2291.6,4.36361771]
[1750688859240,1.5723,2292.1,2291.6,4.36368573]
[1750688859533,1.5723,2292.1,2291.4,4.36406894]
[1750688859722,1.5723,2292.1,2291.4,4.36414419]
[1750688859896,1.5723,2292.1,2291.5,4.36387533]
[1750688860091,1.5723,2292.1,2291.3,0.55]
[1750688860297,1.5723,2292.1,2291.5,4.3638282]
[1750688860605,1.5723,2292.1,2291.4,4.36402946]
[1750688860810,1.5723,2292.1,2291.5,4.36395088]
[1750688861331,1.5723,2292.1,2291.4,4.36414419]
[1750688861332,1.5723,2292.1,2291.6,4.36376174]
[1750688861496,1.5723,2292.1,2291.3,8.653]
[1750688861497,1.5723,2292.1,2291.3,8.103]
[1750688861699,0.40333,2292.0,2291.3,8.103]
[1750688862021,0.40333,2292.0,2291.2,13.0192838]
[1750688862235,0.40333,2292.0,2291.2,8.65486744]
[1750688862236,1.6154,2291.9,2291.2,8.65486744]
[1750688862661,11.6154,2291.9,2291.2,0.1104696]
[1750688862934,1.6003,2291.8,2291.2,0.1104696]
[1750688863152,1.16003,2291.7,2291.2,0.1104696]
[1750688863352,1.6106,2291.6,2291.2,0.1104696]
[1750688864133,4.0726,2291.6,2291.2,0.1104696]
[1750688864317,10.0,2291.5,2291.2,0.1104696]
[1750688864922,1.6469,2291.5,2291.2,0.1104696]
[1750688865236,1.41089,2291.4,2291.2,0.1104696]
[1750688865426,1.513,2291.3,2291.2,0.1104696]
[1750688866135,11.513,2291.3,2291.2,0.1104696]
[1750688866434,1.513,2291.3,2291.2,0.1104696]
[1750688867350,11.6047,2291.2,2289.7,1.6329]
[1750688867526,1.6047,2291.0,2289.7,1.6329]
[1750688867700,4.0367,2291.0,2289.9,10.0]
[1750688867906,4.0367,2291.0,2290.1,4.36647311]
[1750688868101,4.0367,2291.0,2290.0,4.36681222]
[1750688868313,15.21639571,2290.9,2289.7,1.6329]
[1750688868544,11.6166,2290.7,2289.7,1.6329]
[1750688868730,1.6166,2290.7,2289.7,1.6329]
[1750688869047,10.0,2290.5,2289.7,0.005]
[1750688869258,3.9531,2290.4,2289.7,0.005]
[1750688870811,1.5211,2290.4,2289.7,0.005]
[1750688871017,3.58411,2290.3,2289.7,0.005]
[1750688871853,4.0518,2290.2,2289.7,0.005]
[1750688872054,2.432,2290.2,2289.7,0.005]
[1750688872259,4.0518,2290.1,2289.7,0.005]
[1750688872757,3.9736,2290.0,2289.7,0.005]
[1750688872959,6.71655599,2290.0,2289.7,0.005]
[1750688873863,1.5416,2290.0,2289.7,0.005]
[1750688875787,1.313069,2290.3,2289.7,4.37236711]
[1750688875788,2.911669,2290.3,2289.7,4.37236711]
[1750688875977,2.911669,2290.3,2289.7,0.005]
[1750688876292,1.5986,2290.3,2289.8,4.36708541]
[1750688876443,1.5986,2290.3,2289.9,4.36698176]
[1750688876637,1.5986,2290.3,2290.0,4.36678309]
[1750688876840,10.0,2290.7,2290.1,4.36652575]
[1750688876841,1.657,2290.7,2290.1,4.36652575]
[1750688877656,1.657,2290.7,2290.0,4.36673245]
[1750688877976,1.657,2290.7,2289.9,4.80411113]
[1750688877977,1.657,2290.7,2290.3,4.36618763]
[1750688878292,1.657,2290.7,2290.0,4.91670386]
[1750688878572,1.657,2290.7,2290.2,4.36640051]
[1750688878775,1.657,2290.7,2290.1,4.90188673]
[1750688879075,1.657,2290.7,2290.2,4.36633933]
[1750688879275,2.901608,2291.3,2290.4,0.55]
[1750688879439,1.6098,2291.1,2290.3,4.36613626]
[1750688879641,1.6098,2291.1,2290.4,4.36603786]
[1750688879842,1.6098,2291.0,2290.1,4.36660093]
[1750688880480,1.6098,2291.0,2290.1,4.36650849]
[1750688880645,4.0428,2291.0,2290.2,4.36635451]
[1750688880846,1.6098,2291.0,2290.2,4.36635451]
[1750688881043,11.16098,2290.9,2290.0,1.5602]
[1750688881343,11.16098,2290.9,2289.8,4.367075]
[1750688881344,11.5119,2290.8,2289.8,4.367075]
[1750688881545,11.5119,2290.8,2289.9,4.36691821]
[1750688881771,1.5119,2290.7,2289.8,4.3671657]
[1750688881957,1.5119,2290.7,2289.7,11.5289]
[1750688882169,1.52,2290.5,2289.7,0.005]
[1750688882881,11.52,2290.5,2289.7,0.005]
[1750688883092,11.52,2290.5,2289.7,4.37236754]
[1750688883997,11.52,2290.5,2289.7,0.005]
[1750688884352,10.492,2291.0,2289.7,0.005]
[1750688884707,1.6309,2290.9,2290.0,10.0]
[1750688884997,11.6309,2290.9,2290.0,4.36680164]
[1750688885159,11.6309,2290.9,2289.9,4.36688463]
[1750688885356,11.5494,2290.8,2289.8,5.92092338]
[1750688885570,1.5494,2290.8,2290.0,4.36670102]
[1750688885756,1.15494,2290.7,2289.8,9.6258]
[1750688886064,1.15494,2290.7,2290.1,4.366499]
[1750688886804,1.15494,2290.7,2289.8,5.920942]
[1750688886982,1.5245,2290.6,2289.7,10.005]
[1750688887156,1.5245,2290.6,2289.9,4.36699599]
[1750688887352,0.267944,2290.5,2290.0,4.36678971]
[1750688887559,1.5245,2290.6,2289.8,12.43715767]
[1750688887760,1.5245,2290.6,2290.1,4.36652372]
[1750688887962,1.5245,2290.6,2289.8,12.43713418]
[1750688888160,1.5245,2290.6,2289.9,4.36688144]
[1750688888654,1.5245,2290.6,2290.0,4.36679911]
[1750688888893,1.5245,2290.6,2289.8,8.068]
[1750688889075,1.5245,2290.6,2289.8,12.43510096]
[1750688889777,1.5245,2290.6,2289.8,12.43501539]
[1750688890267,1.5245,2290.6,2289.8,8.068]
[1750688890472,1.5245,2290.6,2289.8,12.43511746]
[1750688890675,1.5245,2290.6,2289.7,0.005]
[1750688890991,12.54371153,2290.5,2289.7,0.005]
[1750688891191,1.5574,2290.3,2289.7,0.005]
[1750688892596,1.5574,2290.3,2289.7,4.3723563]
[1750688892802,1.5574,2290.3,2289.7,0.005]
[1750688892960,1.5574,2290.3,2290.0,4.36665763]
[1750688893164,1.5574,2290.3,2289.8,4.36707412]
[1750688894375,1.5574,2290.3,2289.9,4.36699621]
[1750688894994,1.5574,2290.3,2289.8,4.3670843]
[1750688895590,1.5574,2290.3,2289.7,4.37226793]
[1750688896278,1.5574,2290.3,2289.7,0.005]
[1750688896487,1.5574,2290.3,2289.7,4.37233005]
[1750688896801,1.5574,2290.3,2289.8,4.36718919]
[1750688897166,3.9904,2290.3,2289.8,4.36718919]
[1750688897484,3.9904,2290.3,2289.7,0.005]
[1750688897485,1.5574,2290.3,2289.7,4.37230641]
[1750688897666,1.5574,2290.3,2289.7,4.80999597]
[1750688897994,1.48254608,2290.3,2289.7,4.80999597]
[1750688898161,1.48254608,2290.3,2289.8,4.36710104]
[1750688898371,1.48254608,2290.3,2289.7,4.81000635]
[1750688898572,1.48254608,2290.3,2289.8,4.36718043]
[1750688899164,1.48254608,2290.3,2289.9,4.36698825]
[1750688899646,1.48254608,2290.3,2289.8,4.36708424]
[1750688899770,1.48254608,2290.3,2289.8,8.73410906]
[1750688899965,1.48254608,2290.3,2289.8,4.36702482]
[1750688900173,1.48254608,2290.3,2289.7,0.005]
[1750688900387,1.48254608,2290.3,2289.7,4.975741]
[1750688900612,1.48254608,2290.3,2289.8,4.36711929]
[1750688900909,1.48254608,2290.3,2289.7,4.97566164]
[1750688901266,1.48254608,2290.3,2289.8,4.36719141]
[1750688901467,1.48254608,2290.3,2289.7,0.60839215]
[1750688901770,1.5728,2290.6,2290.2,4.36626286]
[1750688902072,1.5728,2290.6,2290.3,4.36611165]
[1750688902279,1.5728,2290.6,2290.2,4.36632713]
[1750688902987,1.5728,2290.6,2290.1,4.36652636]
[1750688903189,1.5728,2290.6,2290.0,4.36674062]
[1750688903514,1.5728,2290.6,2290.2,4.36635093]
[1750688903706,1.5728,2290.6,2290.1,4.36651903]
[1750688904080,1.5728,2290.6,2290.2,4.3663564]
[1750688904482,1.5728,2290.6,2290.0,4.36681222]
[1750688904714,1.5728,2290.6,2290.2,4.36634292]
[1750688905013,1.5728,2290.6,2290.3,4.3662181]
[1750688905313,1.5728,2290.6,2290.2,4.36631405]
[1750688905484,1.5728,2290.6,2290.3,4.36622984]
[1750688905684,1.5728,2290.6,2290.3,4.36614162]
[1750688905879,1.5728,2290.6,2290.2,4.36631552]
[1750688906088,1.5961,2290.8,2290.1,4.36662154]
[1750688906322,1.5961,2290.8,2290.1,12.40745178]
[1750688906619,1.5961,2290.8,2290.2,4.36635278]
[1750688907305,1.5961,2290.8,2289.9,4.36684662]
[1750688907516,13.60944747,2290.7,2289.7,0.005]
[1750688907685,1.5093,2290.6,2289.8,4.3670377]
[1750688907886,1.5093,2290.5,2289.7,4.37225976]
[1750688908414,13.60944747,2290.4,2289.7,0.005]
[1750688908708,15.19574747,2289.8,2289.7,0.005]
[1750688908882,25.63774747,2289.8,2289.7,0.005]
[1750688909424,36.68395116,2289.8,2289.7,0.005]
[1750688909822,47.17795116,2289.8,2289.7,0.005]
[1750688910022,50.54829638,2289.8,2289.6,0.005]
[1750688910222,11.59380369,2289.7,2289.6,0.005]
[1750688910414,10.5476,2289.7,2289.6,0.005]
[1750688910738,20.9896,2289.7,2289.6,0.005]
[1750688910937,0.5476,2289.7,2289.6,0.005]
[1750688911142,4.05776,2289.7,2289.6,0.005]
[1750688911302,14.05776,2289.7,2289.6,0.005]
[1750688911800,0.5476,2289.7,2289.6,0.005]
[1750688912006,2.9536,2289.7,2289.6,0.005]
[1750688912220,0.5476,2289.7,2289.6,0.005]
[1750688914582,10.5476,2289.7,2289.6,0.005]
[1750688914868,24.15704747,2289.7,2289.6,0.005]
[1750688915027,28.56369269,2289.7,2289.6,0.005]
[1750688915687,17.36024522,2289.7,2289.6,0.005]
[1750688915997,14.95424522,2289.7,2289.6,0.005]
[1750688916181,1.5456,2290.6,2289.6,15.21864747]
[1750688916327,1.5456,2290.6,2289.7,4.36738437]
[1750688916679,1.5456,2290.9,2289.9,13.60944747]
[1750688916823,1.5456,2290.9,2290.2,4.36640058]
[1750688917027,1.5456,2290.9,2290.3,4.36622386]
[1750688917243,1.5456,2290.9,2290.4,4.36600846]
[1750688917446,1.5456,2290.9,2290.3,4.36622379]
[1750688917646,1.5456,2290.9,2290.1,4.36654801]
[1750688917846,1.5456,2290.9,2290.2,4.36628556]
[1750688918186,1.5456,2290.9,2290.2,0.44543117]
[1750688918391,1.5456,2290.9,2290.0,8.026]
[1750688918547,1.5456,2290.9,2290.1,4.36662154]
[1750688918748,1.5456,2291.2,2290.2,12.4868406]
[1750688918947,1.5456,2291.2,2290.8,4.36516607]
[1750688919166,1.5456,2291.2,2290.7,4.36537941]
[1750688919485,1.5456,2291.2,2290.5,4.36577902]
[1750688919686,1.5456,2291.2,2290.6,4.3656642]
[1750688919887,1.5456,2291.2,2290.2,6.40383276]
[1750688920185,1.5456,2291.2,2290.3,4.36624]
[1750688920376,1.5456,2291.2,2290.2,6.40382971]
[1750688920573,1.5456,2291.2,2290.3,4.36613605]
[1750688920786,1.5456,2291.2,2290.2,16.4038058]
[1750688921397,1.5456,2291.2,2290.2,10.05648146]
[1750688922249,1.5456,2291.2,2290.2,14.42280728]
[1750688922449,3.9506,2291.2,2290.2,10.05648146]
[1750688922990,2.405,2291.2,2290.2,0.43328146]
[1750688923152,2.405,2291.2,2289.9,1.5139]
[1750688923153,1.6502,2291.1,2289.9,1.5139]
[1750688923353,2.405,2291.0,2290.2,4.36633521]
[1750688923664,4.0552,2291.1,2290.3,0.43663352]
[1750688923875,4.0552,2291.1,2290.2,0.4468297]
[1750688924194,4.0552,2291.1,2290.1,4.36661155]
[1750688924547,4.0552,2291.1,2289.9,1.5139]
[1750688925123,2.405,2291.0,2290.0,4.36672274]
[1750688925296,2.405,2291.0,2289.9,1.95646103]
[1750688925297,2.405,2291.0,2289.9,6.32335421]
[1750688925505,2.405,2291.0,2290.0,4.36679218]
[1750688925903,2.405,2291.0,2289.9,6.32334838]
[1750688926123,2.405,2291.0,2290.0,4.36680525]
[1750688926328,2.405,2291.0,2290.1,4.36661845]
[1750688926528,1.6502,2291.1,2290.1,4.36661845]
[1750688926820,1.6502,2291.1,2290.2,0.43666185]
[1750688927028,1.6502,2291.1,2290.1,4.36661616]
[1750688927225,1.6502,2291.1,2290.0,4.36670292]
[1750688927729,1.6502,2291.1,2290.1,4.36661506]
[1750688928125,1.6502,2291.1,2289.9,1.95646103]
[1750688928289,1.6502,2291.1,2290.1,4.36661846]
[1750688928485,2.05572,2291.1,2290.2,0.43666185]
[1750688929229,2.05572,2291.1,2289.9,6.32334424]
[1750688929428,10.40552,2291.1,2289.9,0.44256103]
[1750688929731,1.6421,2290.7,2289.6,1.5544]
[1750688929930,1.6421,2290.5,2289.7,4.36727193]
[1750688930130,1.6421,2290.5,2289.8,0.43722719]
[1750688930292,1.6421,2290.5,2289.9,4.36699131]
[1750688930630,1.6421,2290.5,2289.8,4.8043189]
[1750688930811,1.6421,2290.5,2289.8,0.43722719]
[1750688931025,1.6421,2290.5,2289.9,4.36700053]
[1750688931215,1.5215,2290.9,2290.3,4.36615655]
[1750688931523,1.5215,2290.9,2290.2,4.36633263]
[1750688931903,1.5215,2290.9,2290.3,4.36623973]
[1750688932291,1.5215,2290.9,2290.2,4.36633263]
[1750688932292,1.5215,2290.9,2290.2,4.36631269]
[1750688932492,1.5215,2290.9,2290.3,0.6574435]
[1750688934432,1.5215,2290.9,2290.1,4.36651225]
[1750688935021,1.5215,2290.9,2290.0,4.3666672]
[1750688935224,1.5215,2290.9,2289.9,1.6536]
[1750688935423,1.5215,2290.9,2289.8,14.36712168]
[1750688936401,1.5215,2290.9,2289.9,4.36699896]
[1750688937732,1.5215,2290.9,2290.0,4.36678601]
[1750688938507,1.5215,2290.9,2289.7,12.3642952]
[1750688938705,1.5215,2290.9,2289.6,0.005]
[1750688938940,2.376,2291.2,2289.6,0.005]
[1750688938941,1.6146,2290.6,2289.6,0.005]
[1750688939142,18.8776406,2290.8,2289.6,0.005]
[1750688939143,1.5868,2290.4,2289.6,0.005]
[1750688939330,0.39628,2290.3,2289.6,0.005]
[1750688939526,1.5868,2290.2,2289.6,0.005]
[1750688940260,23.63828639,2289.7,2288.4,1.313085]
[1750688940416,13.63828639,2289.2,2287.4,15.29028639]
[1750688940737,10.0,2289.2,2287.5,25.99977462]
[1750688940923,10.22652589,2289.2,2287.5,21.62828639]
[1750688941122,10.0,2289.2,2287.5,21.62828639]
[1750688941325,10.0,2288.9,2287.4,1.652]
[1750688941525,1.6573,2288.6,2287.1,3.9779]
[1750688941725,10.0,2288.4,2287.2,0.36498015]
[1750688941915,1.6573,2288.3,2287.2,0.36498015]
[1750688942116,1.5941,2288.1,2287.2,0.36498015]
[1750688943438,1.5941,2288.1,2287.0,4.37245057]
[1750688943760,1.5941,2288.1,2287.1,10.366]
[1750688944058,1.5941,2288.1,2286.8,11.9679]
[1750688944244,1.5941,2288.1,2286.8,3.9789]
[1750688944549,1.5941,2288.1,2286.9,4.37261317]
[1750688944953,1.5941,2288.1,2287.2,4.37203066]
[1750688945130,1.5941,2288.1,2287.3,0.43720307]
[1750688945328,1.5941,2288.1,2287.1,6.74924122]
[1750688945532,0.5276,2287.2,2285.1,10.05318202]
[1750688945845,10.0,2287.3,2284.1,2.354063]
[1750688945846,10.55,2286.1,2285.2,0.36529958]
[1750688946048,2.9056,2286.0,2285.2,0.36529958]
[1750688946376,10.0,2285.9,2285.2,0.36529958]
[1750688946586,1.315787,2285.9,2285.2,0.36529958]
[1750688946859,0.9546774,2286.0,2285.2,0.36529958]
[1750688947439,2.378,2286.5,2285.3,3.9535]
[1750688947440,1.6203,2286.4,2285.3,3.9535]
[1750688947653,0.51768149,2286.3,2285.4,0.79714757]
[1750688947847,1.6203,2286.4,2285.5,0.36525163]
[1750688948354,12.05468498,2286.4,2285.5,0.36525163]
[1750688948658,2.05468498,2286.4,2285.5,0.36525163]
[1750688948862,10.91107303,2286.1,2284.4,1.8308472]
[1750688949068,1.5166,2285.5,2284.4,0.2222472]
[1750688949224,10.0,2285.3,2284.4,0.2222472]
[1750688949429,2.3290073,2285.2,2284.4,0.2222472]
[1750688949875,2.77773591,2285.2,2284.4,0.2222472]
[1750688950055,1.5245,2285.0,2284.4,0.2222472]
[1750688950273,10.0,2284.7,2284.4,0.2222472]
[1750688950646,12.379,2284.8,2284.4,0.2222472]
[1750688951354,25.48102303,2284.8,2284.4,0.2222472]
[1750688951858,23.10202303,2284.8,2284.4,0.2222472]
[1750688952052,20.388,2284.7,2284.4,0.2222472]
[1750688952242,1.5067,2284.5,2284.4,0.2222472]
[1750688952649,12.0567,2284.4,2282.7,1.6024]
[1750688952858,12.0567,2284.4,2282.3,1.6024]
[1750688952859,10.91107303,2283.4,2282.3,1.6024]
[1750688953066,10.0,2283.3,2282.3,1.6024]
[1750688953281,12.38,2283.3,2282.2,1.514]
[1750688953481,24.60824603,2283.3,2282.1,0.2222472]
[1750688953900,10.413,2283.2,2282.1,0.2222472]
[1750688954060,10.0,2283.1,2282.1,0.2222472]
[1750688954250,1.6663,2283.0,2282.1,0.2222472]
[1750688954450,1.6663,2282.9,2282.1,0.2222472]
[1750688955292,1.6663,2282.9,2280.6,0.5]
[1750688955293,10.0,2281.9,2279.4,1.5237]
[1750688955452,10.91107303,2282.3,2279.4,1.5237]
[1750688955453,10.91107303,2280.8,2279.4,1.5237]
[1750688955654,0.55,2280.8,2279.4,5.91065775]
[1750688955993,0.55,2280.8,2279.9,1.5237]
[1750688955994,0.42804301,2280.8,2279.9,1.5237]